fUSD/lending_fUSD_20241030
["ID","MTS","AMOUNT","RATE_DAILY","PERIOD"]
[341019398,1730271012017,-500.0,0.00035999,5]
[341019399,1730271012040,-500.0,0.00035999,5]
[341019400,1730271012061,-500.0,0.00035999,5]
[341019401,1730271012083,-500.0,0.00035999,5]
[341019402,1730271012104,-500.0,0.00035999,5]
[341019403,1730271012127,-500.0,0.00035999,5]
[341019404,1730271012151,-500.0,0.00035999,5]
[341019405,1730271012174,-500.0,0.00035999,5]
[341019406,1730271012198,-522.37815352,0.00035999,5]
[341019407,1730271012221,-500.0,0.00035999,5]
[341019408,1730271012244,-535.77150018,0.00035999,5]
[341019409,1730271012267,-1418.29,0.00035999,5]
[341019410,1730271012288,-500.0,0.00035999,5]
[341019411,1730271012312,-500.0,0.00035999,5]
[341019412,1730271012333,-500.0,0.00035999,5]
[341019413,1730271012355,-500.0,0.00036,2]
[341019414,1730271012377,-150.0,0.00036164,2]
[341019415,1730271012399,-150.0,0.00036164,2]
[341019416,1730271012423,-150.0,0.00036164,2]
[341019417,1730271012444,-150.0,0.00036164,2]
[341019418,1730271012466,-1218.86615584,0.00036272,30]
[341019419,1730271012488,-500.0,0.00036273,5]
[341019420,1730271012510,-500.0,0.00036273,5]
[341019421,1730271012531,-3506.81,0.00036273,5]
[341019422,1730271012552,-500.0,0.00036273,5]
[341019423,1730271012574,-500.0,0.00036273,5]
[341019424,1730271012594,-500.0,0.00036273,5]
[341019425,1730271012614,-4460.88,0.00036273,5]
[341019426,1730271012636,-537.97,0.00036273,5]
[341019427,1730271012656,-500.0,0.00036273,5]
[341019428,1730271012677,-500.0,0.00036273,5]
[341019429,1730271012697,-500.0,0.00036273,5]
[341019430,1730271012718,-500.0,0.00036273,5]
[341019431,1730271012737,-500.0,0.00036273,5]
[341019432,1730271012758,-532.69514957,0.00036273,5]
[341019433,1730271012777,-500.0,0.00036273,5]
[341019434,1730271012798,-500.0,0.00036273,5]
[341019435,1730271012818,-500.0,0.00036273,5]
[341019436,1730271012839,-550.73420886,0.00036273,5]
[341019437,1730271012859,-648.4,0.00036273,5]
[341019438,1730271012879,-300.0,0.00036273,5]
[341019439,1730271012900,-500.0,0.00036273,5]
[341019440,1730271012923,-500.0,0.00036273,5]
[341019441,1730271012944,-586.68,0.00036273,5]
[341019442,1730271012964,-291.94587574,0.00036273,5]
[341019443,1730271012986,-500.0,0.00036273,5]
[341019444,1730271013006,-500.0,0.00036273,5]
[341019445,1730271013026,-500.0,0.00036273,5]
[341019446,1730271013047,-500.0,0.00036273,5]
[341019447,1730271013070,-736.63,0.00036273,5]
[341019448,1730271013091,-500.0,0.00036273,5]
[341019449,1730271013112,-500.0,0.00036273,5]
[341019450,1730271013133,-446.47624888,0.00036273,5]
[341019451,1730271013154,-500.0,0.00036273,5]
[341019452,1730271013175,-500.0,0.00036273,5]
[341019453,1730271013195,-627.81,0.00036273,5]
[341019454,1730271013216,-500.0,0.00036273,5]
[341019455,1730271013237,-500.0,0.00036273,5]
[341019456,1730271013258,-500.0,0.00036273,5]
[341019457,1730271013279,-500.0,0.00036273,5]
[341019458,1730271013301,-619.46,0.00036273,5]
[341019459,1730271013325,-640.52073004,0.00036273,5]
[341019460,1730271013347,-628.01824055,0.00036273,5]
[341019461,1730271013369,-207.25521391,0.00036273,5]
[341019462,1730271013391,-500.0,0.00036273,5]
[341019463,1730271013414,-500.0,0.00036273,5]
[341019464,1730271013435,-500.0,0.00036273,5]
[341019465,1730271013457,-500.0,0.00036273,5]
[341019466,1730271013479,-500.0,0.00036273,5]
[341019467,1730271013504,-509.62496043,0.00036273,5]
[341019468,1730271013526,-500.0,0.00036273,5]
[341019469,1730271013549,-500.0,0.00036273,5]
[341019470,1730271013572,-500.0,0.00036273,5]
[341019471,1730271013595,-500.0,0.00036273,5]
[341019472,1730271013726,-314.77997582,0.00036273,5]
[341019473,1730271013749,-500.0,0.00036273,5]
[341019474,1730271013771,-500.0,0.00036273,5]
[341019475,1730271013795,-1418.29,0.00036273,5]
[341019476,1730271013819,-601.0526559,0.00036273,5]
[341019477,1730271013843,-500.0,0.00036273,5]
[341019478,1730271013866,-500.0,0.00036273,5]
[341019479,1730271013890,-152.0,0.00036375,4]
[341019480,1730271013914,-262.27,0.0003642,7]
[341019481,1730271013935,-1000.0,0.00036425,2]
[341019482,1730271013956,-500.0,0.00036547,5]
[341019483,1730271013978,-500.0,0.00036547,5]
[341019484,1730271013999,-3506.81,0.00036547,5]
[341019485,1730271014021,-500.0,0.00036547,5]
[341019486,1730271014043,-500.0,0.00036547,5]
[341019487,1730271014068,-500.0,0.00036547,5]
[341019488,1730271014091,-4460.88,0.00036547,5]
[341019489,1730271014113,-537.97,0.00036547,5]
[341019490,1730271014135,-500.0,0.00036547,5]
[341019491,1730271014157,-500.0,0.00036547,5]
[341019492,1730271014179,-580.23072266,0.00036547,5]
[341019493,1730271014200,-500.0,0.00036547,5]
[341019494,1730271014223,-500.0,0.00036547,5]
[341019495,1730271014245,-500.0,0.00036547,5]
[341019496,1730271014267,-500.0,0.00036547,5]
[341019497,1730271014289,-632.79959388,0.00036547,5]
[341019498,1730271014311,-648.4,0.00036547,5]
[341019499,1730271014334,-300.0,0.00036547,5]
[341019500,1730271014358,-500.0,0.00036547,5]
[341019501,1730271014381,-500.0,0.00036547,5]
[341019502,1730271014403,-586.68,0.00036547,5]
[341019503,1730271014425,-500.0,0.00036547,5]
[341019504,1730271014447,-221.92101391,0.00036547,5]
[341019505,1730271014468,-500.0,0.00036547,5]
[341019506,1730271014491,-500.0,0.00036547,5]
[341019507,1730271014513,-736.63,0.00036547,5]
[341019508,1730271014535,-500.0,0.00036547,5]
[341019509,1730271014558,-500.0,0.00036547,5]
[341019510,1730271014580,-500.0,0.00036547,5]
[341019511,1730271014601,-500.0,0.00036547,5]
[341019512,1730271014622,-627.81,0.00036547,5]
[341019513,1730271014643,-500.0,0.00036547,5]
[341019514,1730271014667,-391.94966298,0.00036547,5]
[341019515,1730271014689,-500.0,0.00036547,5]
[341019516,1730271014710,-500.0,0.00036547,5]
[341019517,1730271014732,-619.46,0.00036547,5]
[341019518,1730271014754,-633.84855688,0.00036547,5]
[341019519,1730271014775,-500.0,0.00036547,5]
[341019520,1730271014796,-500.0,0.00036547,5]
[341019521,1730271014818,-500.0,0.00036547,5]
[341019522,1730271014840,-500.0,0.00036547,5]
[341019523,1730271014862,-500.0,0.00036547,5]
[341019524,1730271014884,-500.0,0.00036547,5]
[341019525,1730271014909,-500.0,0.00036547,5]
[341019526,1730271014931,-500.0,0.00036547,5]
[341019527,1730271014953,-500.0,0.00036547,5]
[341019528,1730271014976,-500.0,0.00036547,5]
[341019529,1730271015000,-1418.29,0.00036547,5]
[341019530,1730271015029,-500.0,0.00036547,5]
[341019531,1730271015058,-500.0,0.00036547,5]
[341019532,1730271015084,-10043.80605619,0.0003658,2]
[341019533,1730271015111,-1278.5104,0.00036686,2]
[341019534,1730271015134,-5814.968185,0.000367,2]
[341019535,1730271015157,-1539.08673637,0.0003672,2]
[341019536,1730271015181,-165.15303453,0.00036779,2]
[341019537,1730271015204,-500.0,0.0003678,2]
[341019538,1730271015227,-1000.0,0.0003678,2]
[341019539,1730271015249,-1760.0994,0.0003678,2]
[341019540,1730271015273,-723.74692312,0.00036785,15]
[341019541,1730271015295,-321.97712179,0.00036785,2]
[341019542,1730271015317,-28711.8122,0.00036786,2]
[341019543,1730271015339,-397.0,0.000368,22]
[341019544,1730271015361,-500.0,0.00036821,5]
[341019545,1730271015382,-500.0,0.00036821,5]
[341019546,1730271015406,-3506.81,0.00036821,5]
[341019547,1730271015429,-500.0,0.00036821,5]
[341019548,1730271015451,-500.0,0.00036821,5]
[341019549,1730271015473,-500.0,0.00036821,5]
[341019550,1730271015496,-4460.88,0.00036821,5]
[341019551,1730271015517,-537.97,0.00036821,5]
[341019552,1730271015539,-500.0,0.00036821,5]
[341019553,1730271015560,-500.0,0.00036821,5]
[341019554,1730271015582,-500.0,0.00036821,5]
[341019555,1730271015604,-500.0,0.00036821,5]
[341019556,1730271015626,-500.0,0.00036821,5]
[341019557,1730271015648,-500.0,0.00036821,5]
[341019558,1730271015805,-648.4,0.00036821,5]
[341019559,1730271015829,-300.0,0.00036821,5]
[341019560,1730271015851,-500.0,0.00036821,5]
[341019561,1730271015873,-500.0,0.00036821,5]
[341019562,1730271015895,-586.68,0.00036821,5]
[341019563,1730271015921,-500.0,0.00036821,5]
[341019564,1730271015943,-500.0,0.00036821,5]
[341019565,1730271015965,-500.0,0.00036821,5]
[341019566,1730271015986,-736.63,0.00036821,5]
[341019567,1730271016009,-500.0,0.00036821,5]
[341019568,1730271016033,-500.0,0.00036821,5]
[341019569,1730271016056,-500.0,0.00036821,5]
[341019570,1730271016079,-500.0,0.00036821,5]
[341019571,1730271016100,-627.81,0.00036821,5]
[341019572,1730271016123,-500.0,0.00036821,5]
[341019573,1730271016145,-500.0,0.00036821,5]
[341019574,1730271016166,-500.0,0.00036821,5]
[341019575,1730271016188,-619.46,0.00036821,5]
[341019576,1730271016209,-500.0,0.00036821,5]
[341019577,1730271016231,-214.23738372,0.00036821,5]
[341019578,1730271016253,-500.0,0.00036821,5]
[341019579,1730271016274,-500.0,0.00036821,5]
[341019580,1730271016296,-500.0,0.00036821,5]
[341019581,1730271016317,-500.0,0.00036821,5]
[341019582,1730271016339,-608.87040759,0.00036821,5]
[341019583,1730271016361,-500.0,0.00036821,5]
[341019584,1730271016382,-525.66274048,0.00036821,5]
[341019585,1730271016404,-500.0,0.00036821,5]
[341019586,1730271016426,-1418.29,0.00036821,5]
[341019587,1730271016448,-616.92786585,0.00036821,5]
[341019588,1730271016470,-500.0,0.00036821,5]
[341019589,1730271016492,-723.74692311,0.00036853,15]
[341019590,1730271016513,-1161.23411231,0.0003687,2]
[341019591,1730271016534,-503.39106263,0.00036873,5]
[341019592,1730271016559,-500.27252158,0.00036873,5]
[341019593,1730271016580,-504.63538047,0.00036873,5]
[341019594,1730271016601,-500.0,0.00036879,5]
[341019595,1730271016622,-500.0,0.00036879,5]
[341019596,1730271016642,-500.0,0.00036879,5]
[341019597,1730271016663,-200.0,0.00036879,5]
[341019598,1730271016685,-500.0,0.00036879,5]
[341019599,1730271016708,-500.0,0.00036879,5]
[341019600,1730271016733,-1425.11,0.00036879,5]
[341019601,1730271016757,-500.0,0.00036879,5]
[341019602,1730271016781,-500.0,0.00036879,5]
[341019603,1730271016803,-152.55905156,0.00036879,5]
[341019604,1730271016828,-500.0,0.00036879,5]
[341019605,1730271016852,-523.94313876,0.00036879,5]
[341019606,1730271016878,-500.0,0.00036879,5]
[341019607,1730271016902,-630.63,0.00036879,5]
[341019608,1730271016926,-252.65698769,0.00036879,5]
[341019609,1730271016949,-500.0,0.00036879,5]
[341019610,1730271016973,-219.99569956,0.00036879,5]
[341019611,1730271016998,-500.0,0.00036879,5]
[341019612,1730271017023,-500.0,0.00036879,5]
[341019613,1730271017048,-719.89,0.00036879,5]
[341019614,1730271017070,-500.0,0.00036879,5]
[341019615,1730271017094,-3348.66,0.00036879,5]
[341019616,1730271017120,-503.75875535,0.00036879,5]
[341019617,1730271017146,-500.0,0.00036879,5]
[341019618,1730271017170,-500.0,0.00036879,5]
[341019619,1730271017194,-500.0,0.00036879,5]
[341019620,1730271017218,-500.0,0.00036879,5]
[341019621,1730271017242,-500.0,0.00036879,5]
[341019622,1730271017266,-500.0,0.00036879,5]
[341019623,1730271017291,-500.0,0.00036879,5]
[341019624,1730271017313,-500.0,0.00036879,5]
[341019625,1730271017335,-507.20000051,0.00036879,5]
[341019626,1730271017357,-500.0,0.00036879,5]
[341019627,1730271017378,-500.0,0.00036879,5]
[341019628,1730271017399,-500.0,0.00036879,5]
[341019629,1730271017424,-1317.86,0.00036879,5]
[341019630,1730271017446,-500.0,0.00036879,5]
[341019631,1730271017468,-500.0,0.00036879,5]
[341019632,1730271017490,-500.0,0.00036879,5]
[341019633,1730271017513,-500.0,0.00036879,5]
[341019634,1730271017534,-500.0,0.00036879,5]
[341019635,1730271017555,-500.0,0.00036879,5]
[341019636,1730271017576,-500.0,0.00036879,5]
[341019637,1730271017597,-500.0,0.00036879,5]
[341019638,1730271017620,-500.0,0.00036879,5]
[341019639,1730271017646,-500.0,0.00036879,5]
[341019640,1730271017775,-500.0,0.00036879,5]
[341019641,1730271017801,-500.0,0.00036879,5]
[341019642,1730271017825,-935.43,0.00036879,5]
[341019643,1730271017847,-513.12665602,0.00036879,5]
[341019644,1730271017869,-500.0,0.00036879,5]
[341019645,1730271017890,-500.0,0.00036879,5]
[341019646,1730271017915,-500.0,0.00036879,5]
[341019647,1730271017936,-500.0,0.00036879,5]
[341019648,1730271017957,-500.0,0.00036879,5]
[341019649,1730271017978,-803.0,0.00036879,5]
[341019650,1730271017999,-500.0,0.00036879,5]
[341019651,1730271018024,-2292.11,0.00036879,5]
[341019652,1730271018045,-500.0,0.00036879,5]
[341019653,1730271018066,-500.0,0.00036879,5]
[341019654,1730271018087,-510.96342832,0.00036879,5]
[341019655,1730271018109,-500.0,0.00036879,5]
[341019656,1730271018131,-2861.14,0.00036879,5]
[341019657,1730271018153,-500.0,0.00036879,5]
[341019658,1730271018177,-610.17,0.00036879,5]
[341019659,1730271018198,-500.0,0.00036879,5]
[341019660,1730271018221,-500.0,0.00036879,5]
[341019661,1730271018244,-500.0,0.00036879,5]
[341019662,1730271018265,-1815.53,0.00036879,5]
[341019663,1730271018286,-500.0,0.00036879,5]
[341019664,1730271018307,-500.0,0.00036879,5]
[341019665,1730271018333,-500.0,0.00036879,5]
[341019666,1730271018354,-277.65631076,0.00036879,5]
[341019667,1730271018376,-500.0,0.00036879,5]
[341019668,1730271018397,-786.75,0.00036879,5]
[341019669,1730271018420,-500.0,0.00036879,5]
[341019670,1730271018441,-500.0,0.00036879,5]
[341019671,1730271018462,-500.0,0.00036879,5]
[341019672,1730271018484,-500.0,0.00036879,5]
[341019673,1730271018506,-500.0,0.00036879,5]
[341019674,1730271018529,-500.0,0.00036879,5]
[341019675,1730271018550,-500.0,0.00036879,5]
[341019676,1730271018572,-321.75252007,0.00036879,5]
[341019677,1730271018593,-595.17906984,0.00036879,5]
[341019678,1730271018615,-3091.8,0.00036879,5]
[341019679,1730271018636,-500.0,0.00036879,5]
[341019680,1730271018658,-500.0,0.00036879,5]
[341019681,1730271018680,-500.0,0.00036879,5]
[341019682,1730271018702,-2490.25,0.00036879,5]
[341019683,1730271018724,-1134.08,0.00036879,5]
[341019684,1730271018745,-500.0,0.00036879,5]
[341019685,1730271018767,-5476.47,0.00036879,5]
[341019686,1730271018788,-500.0,0.00036879,5]
[341019687,1730271018809,-355.07966613,0.00036879,5]
[341019688,1730271018831,-990.29,0.00036879,5]
[341019689,1730271018852,-500.0,0.00036879,5]
[341019690,1730271018873,-500.0,0.00036879,5]
[341019691,1730271018897,-530.6,0.00036879,5]
[341019692,1730271018926,-500.0,0.00036879,5]
[341019693,1730271018948,-500.0,0.00036879,5]
[341019694,1730271018968,-500.0,0.00036879,5]
[341019695,1730271018991,-500.0,0.00036879,5]
[341019696,1730271019012,-500.0,0.00036879,5]
[341019697,1730271019033,-900.74,0.00036879,5]
[341019698,1730271019055,-500.0,0.00036879,5]
[341019699,1730271019077,-500.0,0.00036879,5]
[341019700,1730271019099,-161.71606481,0.00036879,5]
[341019701,1730271019121,-500.0,0.00036879,5]
[341019702,1730271019144,-684.97,0.00036879,5]
[341019703,1730271019166,-500.0,0.00036879,5]
[341019704,1730271019188,-500.0,0.00036879,5]
[341019705,1730271019210,-943.06,0.00036879,5]
[341019706,1730271019232,-500.0,0.00036879,5]
[341019707,1730271019255,-500.0,0.00036879,5]
[341019708,1730271019277,-584.02941276,0.00036879,5]
[341019709,1730271019298,-315730.46368666,0.0003688,2]
[341019710,1730271019319,-150.01,0.00036885,2]
[341019711,1730271019341,-2569.61784999,0.00036885,2]
[341019712,1730271019362,-2000.0,0.00036886,2]
[341019713,1730271019384,-321.97712179,0.00036888,2]
[341019714,1730271019406,-1346.5627277,0.00036898,2]
[341019715,1730271019428,-3331.3302087,0.00036898,2]
[341019716,1730271019451,-723.74692311,0.00036922,15]
[341019717,1730271019473,-1000.0,0.0003697,2]
[341019718,1730271019496,-1000.0,0.00036986,2]
[341019719,1730271019626,-500.0,0.00036986,14]
[341019720,1730271019652,-649.0,0.00036986,14]
[341019721,1730271019677,-500.0,0.00036986,14]
[341019722,1730271019700,-723.74692311,0.0003699,15]
[341019723,1730271019724,-321.97712179,0.0003699,2]
[341019724,1730271019749,-5000.0,0.00037,2]
[341019725,1730271019772,-1800.0,0.00037,2]
[341019726,1730271019797,-5000.0,0.00037,2]
[341019727,1730271019820,-5000.0,0.00037,2]
[341019728,1730271019844,-5000.0,0.00037,2]
[341019729,1730271019869,-5000.0,0.00037,2]
[341019730,1730271019896,-2061.23,0.00037,4]
[341019731,1730271019924,-1000.0,0.00037,120]
[341019732,1730271019944,-151.54,0.00037053,2]
[341019733,1730271019966,-723.74692311,0.00037058,15]
[341019734,1730271019987,-321.97712179,0.00037093,2]
[341019735,1730271020009,-506.42577645,0.00037095,5]
[341019736,1730271020038,-500.0,0.00037095,5]
[341019737,1730271020062,-3506.81,0.00037095,5]
[341019738,1730271020085,-500.0,0.00037095,5]
[341019739,1730271020109,-500.0,0.00037095,5]
[341019740,1730271020132,-500.0,0.00037095,5]
[341019741,1730271020156,-4460.88,0.00037095,5]
[341019742,1730271020183,-537.97,0.00037095,5]
[341019743,1730271020207,-500.0,0.00037095,5]
[341019744,1730271020230,-500.0,0.00037095,5]
[341019745,1730271020255,-500.0,0.00037095,5]
[341019746,1730271020281,-500.0,0.00037095,5]
[341019747,1730271020307,-500.0,0.00037095,5]
[341019748,1730271020330,-500.0,0.00037095,5]
[341019749,1730271020355,-648.4,0.00037095,5]
[341019750,1730271020379,-300.0,0.00037095,5]
[341019751,1730271020401,-500.0,0.00037095,5]
[341019752,1730271020424,-500.0,0.00037095,5]
[341019753,1730271020445,-586.68,0.00037095,5]
[341019754,1730271020468,-500.0,0.00037095,5]
[341019755,1730271020490,-500.0,0.00037095,5]
[341019756,1730271020511,-500.0,0.00037095,5]
[341019757,1730271020532,-736.63,0.00037095,5]
[341019758,1730271020553,-500.0,0.00037095,5]
[341019759,1730271020574,-500.0,0.00037095,5]
[341019760,1730271020597,-500.0,0.00037095,5]
[341019761,1730271020626,-500.0,0.00037095,5]
[341019762,1730271020650,-627.81,0.00037095,5]
[341019763,1730271020674,-500.0,0.00037095,5]
[341019764,1730271020695,-500.0,0.00037095,5]
[341019765,1730271020718,-619.46,0.00037095,5]
[341019766,1730271020744,-500.25905751,0.00037095,5]
[341019767,1730271020767,-500.0,0.00037095,5]
[341019768,1730271020793,-500.0,0.00037095,5]
[341019769,1730271020818,-500.0,0.00037095,5]
[341019770,1730271020843,-500.0,0.00037095,5]
[341019771,1730271020869,-500.0,0.00037095,5]
[341019772,1730271020894,-500.0,0.00037095,5]
[341019773,1730271020922,-500.0,0.00037095,5]
[341019774,1730271020945,-1418.29,0.00037095,5]
[341019775,1730271020966,-500.0,0.00037095,5]
[341019776,1730271020988,-116057.2628,0.000371,2]
[341019777,1730271021010,-151.0,0.000371,7]
[341019778,1730271021032,-151.0,0.000371,7]
[341019779,1730271021057,-151.0,0.000371,7]
[341019780,1730271021083,-151.0,0.000371,7]
[341019781,1730271021108,-521.179929,0.000371,14]
[341019782,1730271021133,-723.74692311,0.00037127,15]
[341019783,1730271021153,-15780.3006814,0.0003713,30]
[341019784,1730271021174,-500.0,0.00037153,5]
[341019785,1730271021195,-500.0,0.00037153,5]
[341019786,1730271021216,-500.0,0.00037153,5]
[341019787,1730271021239,-200.0,0.00037153,5]
[341019788,1730271021264,-500.0,0.00037153,5]
[341019789,1730271021290,-500.0,0.00037153,5]
[341019790,1730271021314,-1425.11,0.00037153,5]
[341019791,1730271021334,-605.59135481,0.00037153,5]
[341019792,1730271021356,-500.0,0.00037153,5]
[341019793,1730271021377,-500.0,0.00037153,5]
[341019794,1730271021499,-514.97412187,0.00037153,5]
[341019795,1730271021521,-630.63,0.00037153,5]
[341019796,1730271021544,-500.0,0.00037153,5]
[341019797,1730271021565,-500.0,0.00037153,5]
[341019798,1730271021586,-509.47475016,0.00037153,5]
[341019799,1730271021608,-719.89,0.00037153,5]
[341019800,1730271021630,-500.0,0.00037153,5]
[341019801,1730271021654,-3348.66,0.00037153,5]
[341019802,1730271021678,-500.0,0.00037153,5]
[341019803,1730271021703,-500.0,0.00037153,5]
[341019804,1730271021727,-500.0,0.00037153,5]
[341019805,1730271021754,-500.0,0.00037153,5]
[341019806,1730271021780,-500.0,0.00037153,5]
[341019807,1730271021803,-500.0,0.00037153,5]
[341019808,1730271021824,-500.0,0.00037153,5]
[341019809,1730271021846,-500.0,0.00037153,5]
[341019810,1730271021867,-526.10965602,0.00037153,5]
[341019811,1730271021889,-500.0,0.00037153,5]
[341019812,1730271021912,-500.0,0.00037153,5]
[341019813,1730271021933,-1317.86,0.00037153,5]
[341019814,1730271021953,-500.0,0.00037153,5]
[341019815,1730271021975,-500.0,0.00037153,5]
[341019816,1730271021995,-500.0,0.00037153,5]
[341019817,1730271022017,-500.0,0.00037153,5]
[341019818,1730271022039,-500.0,0.00037153,5]
[341019819,1730271022060,-500.0,0.00037153,5]
[341019820,1730271022081,-500.0,0.00037153,5]
[341019821,1730271022102,-500.0,0.00037153,5]
[341019822,1730271022123,-500.0,0.00037153,5]
[341019823,1730271022145,-500.0,0.00037153,5]
[341019824,1730271022166,-500.0,0.00037153,5]
[341019825,1730271022187,-500.0,0.00037153,5]
[341019826,1730271022209,-935.43,0.00037153,5]
[341019827,1730271022230,-500.0,0.00037153,5]
[341019828,1730271022251,-500.0,0.00037153,5]
[341019829,1730271022272,-500.0,0.00037153,5]
[341019830,1730271022293,-500.0,0.00037153,5]
[341019831,1730271022315,-458.27917703,0.00037153,5]
[341019832,1730271022336,-803.0,0.00037153,5]
[341019833,1730271022357,-500.0,0.00037153,5]
[341019834,1730271022378,-2292.11,0.00037153,5]
[341019835,1730271022399,-500.0,0.00037153,5]
[341019836,1730271022421,-500.0,0.00037153,5]
[341019837,1730271022442,-500.0,0.00037153,5]
[341019838,1730271022464,-2861.14,0.00037153,5]
[341019839,1730271022485,-500.0,0.00037153,5]
[341019840,1730271022506,-610.17,0.00037153,5]
[341019841,1730271022527,-500.0,0.00037153,5]
[341019842,1730271022548,-512.10969709,0.00037153,5]
[341019843,1730271022570,-500.0,0.00037153,5]
[341019844,1730271022592,-1815.53,0.00037153,5]
[341019845,1730271022614,-273.32309545,0.00037153,5]
[341019846,1730271022635,-500.0,0.00037153,5]
[341019847,1730271022656,-500.0,0.00037153,5]
[341019848,1730271022678,-500.0,0.00037153,5]
[341019849,1730271022700,-786.75,0.00037153,5]
[341019850,1730271022722,-500.0,0.00037153,5]
[341019851,1730271022742,-530.51278769,0.00037153,5]
[341019852,1730271022763,-500.0,0.00037153,5]
[341019853,1730271022784,-629.15545485,0.00037153,5]
[341019854,1730271022805,-588.77751535,0.00037153,5]
[341019855,1730271022826,-500.0,0.00037153,5]
[341019856,1730271022847,-500.0,0.00037153,5]
[341019857,1730271022869,-3091.8,0.00037153,5]
[341019858,1730271022891,-515.61326369,0.00037153,5]
[341019859,1730271022914,-398.72009965,0.00037153,5]
[341019860,1730271022935,-500.0,0.00037153,5]
[341019861,1730271022958,-2490.25,0.00037153,5]
[341019862,1730271022980,-1134.08,0.00037153,5]
[341019863,1730271023001,-507.91937062,0.00037153,5]
[341019864,1730271023023,-5476.47,0.00037153,5]
[341019865,1730271023044,-500.0,0.00037153,5]
[341019866,1730271023067,-990.29,0.00037153,5]
[341019867,1730271023190,-520.92377539,0.00037153,5]
[341019868,1730271023213,-500.0,0.00037153,5]
[341019869,1730271023237,-530.6,0.00037153,5]
[341019870,1730271023263,-500.0,0.00037153,5]
[341019871,1730271023285,-500.0,0.00037153,5]
[341019872,1730271023312,-500.0,0.00037153,5]
[341019873,1730271023336,-526.76290879,0.00037153,5]
[341019874,1730271023358,-500.0,0.00037153,5]
[341019875,1730271023382,-900.74,0.00037153,5]
[341019876,1730271023405,-500.0,0.00037153,5]
[341019877,1730271023428,-500.0,0.00037153,5]
[341019878,1730271023450,-684.97,0.00037153,5]
[341019879,1730271023472,-500.0,0.00037153,5]
[341019880,1730271023494,-500.0,0.00037153,5]
[341019881,1730271023517,-943.06,0.00037153,5]
[341019882,1730271023539,-500.0,0.00037153,5]
[341019883,1730271023561,-500.0,0.00037153,5]
[341019884,1730271023582,-500.0,0.00037153,5]
[341019885,1730271023604,-299.84985002,0.0003716,7]
[341019886,1730271023626,-162.34861075,0.0003716,10]
[341019887,1730271023648,-150.0,0.0003716,7]
[341019888,1730271023672,-16057.75626835,0.0003716,2]
[341019889,1730271023694,-150.0,0.0003716,7]
[341019890,1730271023718,-565.0,0.0003716,7]
[341019891,1730271023741,-626.31532468,0.0003716,2]
[341019892,1730271023763,-150.0,0.0003716,7]
[341019893,1730271023787,-1000.0,0.0003717,2]
[341019894,1730271023815,-753.24346402,0.0003717,2]
[341019895,1730271023843,-2500.57425989,0.00037187,2]
[341019896,1730271023872,-723.74692311,0.00037195,15]
[341019897,1730271023899,-321.97712179,0.00037195,2]